[Event "9th Amsterdam Science Park B 2019"]
[Site "Amsterdam"]
[Date "2019.07.11"]
[Round "6.10"]
[White "Belozerova, Olga"]
[Black "Busa, Ryan"]
[Result "1-0"]
[ECO "B08"]
[WhiteElo "1276"]
[BlackElo "1052"]
[Annotator "NA"]
[PlyCount "83"]
[EventDate "2019.07.06"]
[EventType "swiss"]
[EventCountry "NED"]
[SourceTitle "playchess.com"]
[Source "ChessBase"]
[SourceQuality "1"]
[TimeControl "40/5400+30:1800+30"]

1. d4 {[%emt 0:00:00]} Nf6 {[%emt 0:00:00]} 2. Nf3 {[%emt 0:00:00]} d6 {[%emt 0:00:00]} 3. Nc3 {[%emt 0:00:00]} g6 {[%emt 0:00:00]} 4. e4 {[%emt 0:00:08]} Bg7 {[%emt 0:00:26]} 5. Be3 {[%emt 0:00:18]} O-O {[%emt 0:00:17]} 6. Qd2 {[%emt 0:00:25]} Nbd7 {[%emt 0:00:16]} 7. O-O-O {[%emt 0:00:17]} Re8 {[%emt 0:01:23]} 8. Bh6 {[%emt 0:01:42]} e5 {[%emt 0:05:30]} 9. dxe5 {[%emt 0:04:52]} dxe5 {[%emt 0:01:21]} 10. h3 {[%emt 0:06:40]} c6 {[%emt 0:01:09]} 11. g4 {[%emt 0:01:08]} b5 {[%emt 0:01:32]} 12. Bxg7 {[%emt 0:03:35]} Kxg7 {[%emt 0:00:15]} 13. g5 {[%emt 0:00:30]} Nh5 {[%emt 0:00:33]} 14. h4 {[%emt 0:05:39]} Qe7 {[%emt 0:04:45]} 15. Qd6 {[%emt 0:05:36]} Qxd6 {[%emt 0:02:03]} 16. Rxd6 {[%emt 0:00:04]} Nb8 {[%emt 0:00:13]} 17. Ne2 {[%emt 0:08:55]} Bg4 {[%emt 0:01:49]} 18. Bg2 {[%emt 0:01:14]} a5 {[%emt 0:00:53]} 19. Rhd1 {[%emt 0:01:20]} a4 {[%emt 0:01:01]} 20. Rd8 {[%emt 0:00:56]} Re7 {[%emt 0:01:19]} 21. R1d6 {[%emt 0:04:33]} Rea7 {[%emt 0:03:18]} 22. Kd1 {[%emt 0:01:59]} a3 {[%emt 0:01:14]} 23. b3 {[%emt 0:00:43]} Bxf3 {[%emt 0:05:31]} 24. Bxf3 {[%emt 0:00:06]} Nf4 {[%emt 0:00:09]} 25. Nxf4 {[%emt 0:01:15]} exf4 {[%emt 0:00:07]} 26. e5 {[%emt 0:00:47]} Na6 {[%emt 0:00:41]} 27. Rxa8 {[%emt 0:02:29]} Rxa8 {[%emt 0:00:06]} 28. Bxc6 {[%emt 0:00:28]} Ra7 {[%emt 0:01:24]} 29. Rd4 {[%emt 0:03:33]} b4 {[%emt 0:02:01]} 30. Rxf4 {[%emt 0:00:47]} Re7 {[%emt 0:01:24]} 31. Re4 {[%emt 0:02:29]} h5 {[%emt 0:01:09]} 32. f4 {[%emt 0:00:44]} Kf8 {[%emt 0:01:26]} 33. Bb5 {[%emt 0:00:32]} Nc7 {[%emt 0:00:25]} 34. Bc6 {[%emt 0:02:35]} Re6 {[%emt 0:00:39]} 35. Rc4 {[%emt 0:04:32]} Ke7 {[%emt 0:01:05]} 36. Kd2 {[%emt 0:01:33]} Kd8 {[%emt 0:02:46]} 37. Rd4+ {[%emt 0:00:26]} Kc8 {[%emt 0:03:19]} 38. Bd7+ {[%emt 0:00:10]} Kb7 {[%emt 0:00:04]} 39. Bxe6 {[%emt 0:00:20]} Nxe6 {[%emt 0:00:04]} 40. Rxb4+ {[%emt 0:00:08]} Kc6 {[%emt 0:00:19]} 41. Ra4 {[%emt 0:30:47]} Kd5 {[%emt 0:30:12]} 42. Ke3 {[%emt 0:00:40]} 1-0

[Event "9th Amsterdam Science Park B 2019"]
[Site "Amsterdam"]
[Date "2019.07.12"]
[Round "7.1"]
[White "Duson, Robin"]
[Black "Dambrink, Wouter"]
[Result "1-0"]
[ECO "D16"]
[WhiteElo "1936"]
[BlackElo "1931"]
[Annotator "NA"]
[PlyCount "63"]
[EventDate "2019.07.06"]
[EventType "swiss"]
[EventCountry "NED"]
[SourceTitle "playchess.com"]
[Source "ChessBase"]
[SourceQuality "1"]
[TimeControl "40/5400+30:1800+30"]

1. d4 {[%emt 0:00:00]} d5 {[%emt 0:00:00]} 2. c4 {[%emt 0:00:00]} c6 {[%emt 0:00:00]} 3. Nc3 {[%emt 0:00:00]} Nf6 {[%emt 0:00:00]} 4. Nf3 {[%emt 0:00:08]} dxc4 {[%emt 0:00:00]} 5. a4 {[%emt 0:00:14]} e6 {[%emt 0:00:12]} 6. e3 {[%emt 0:01:07]} c5 {[%emt 0:00:08]} 7. Bxc4 {[%emt 0:00:30]} Nc6 {[%emt 0:00:06]} 8. O-O {[%emt 0:00:33]} cxd4 {[%emt 0:00:05]} 9. exd4 {[%emt 0:00:35]} Be7 {[%emt 0:00:08]} 10. Qe2 {[%emt 0:03:07]} O-O {[%emt 0:13:33]} 11. Rd1 {[%emt 0:00:42]} Nb4 {[%emt 0:02:58]} 12. Ne5 {[%emt 0:03:21]} Nbd5 {[%emt 0:01:43]} 13. Bg5 {[%emt 0:06:08]} a6 {[%emt 0:08:38]} 14. a5 {[%emt 0:13:27]} Qd6 {[%emt 0:12:58]} 15. Rd3 {[%emt 0:14:45]} b5 {[%emt 0:08:24]} 16. axb6 {[%emt 0:03:11]} Nxb6 {[%emt 0:00:52]} 17. Ba2 {[%emt 0:02:48]} Bb7 {[%emt 0:00:51]} 18. Rad1 {[%emt 0:01:00]} Nbd5 {[%emt 0:02:28]} 19. Bb1 {[%emt 0:06:19]} Nxc3 {[%emt 0:06:17]} 20. bxc3 {[%emt 0:00:38]} Nd5 {[%emt 0:13:39]} 21. Bxe7 {[%emt 0:03:22]} Nxe7 {[%emt 0:01:11]} 22. Rh3 {[%emt 0:01:35]} g6 {[%emt 0:11:02]} 23. Qg4 {[%emt 0:04:35]} Nf5 {[%emt 0:03:40]} 24. Qf4 {[%emt 0:02:59]} f6 {[%emt 0:05:20]} 25. Nd3 {[%emt 0:02:23]} Qc6 {[%emt 0:02:32]} 26. Ne1 {[%emt 0:00:49]} Qa4 {[%emt 0:01:12]} 27. Bc2 {[%emt 0:00:31]} Qc4 {[%emt 0:01:00]} 28. Rb1 {[%emt 0:02:45]} g5 {[%emt 0:04:03]} 29. Qg4 {[%emt 0:01:21]} Ng7 {[%emt 0:00:35]} 30. Rxb7 {[%emt 0:00:38]} h5 {[%emt 0:00:51]} 31. Rxh5 {[%emt 0:02:11]} Nxh5 {[%emt 0:00:33]} 32. Qxh5 {[%emt 0:00:11]} 1-0

[Event "9th Amsterdam Science Park B 2019"]
[Site "Amsterdam"]
[Date "2019.07.12"]
[Round "7.2"]
[White "Breedveld, Andre"]
[Black "Emans, Job"]
[Result "0-1"]
[ECO "E47"]
[WhiteElo "1947"]
[BlackElo "1989"]
[Annotator "NA"]
[PlyCount "96"]
[EventDate "2019.07.06"]
[EventType "swiss"]
[EventCountry "NED"]
[SourceTitle "playchess.com"]
[Source "ChessBase"]
[SourceQuality "1"]
[TimeControl "40/5400+30:1800+30"]

1. c4 {[%emt 0:00:00]} e6 {[%emt 0:00:00]} 2. Nc3 {[%emt 0:00:00]} Nf6 {[%emt 0:00:00]} 3. d4 {[%emt 0:00:00]} Bb4 {[%emt 0:00:01]} 4. e3 {[%emt 0:00:00]} O-O {[%emt 0:00:52]} 5. Bd3 {[%emt 0:00:25]} c5 {[%emt 0:04:40]} 6. Nge2 {[%emt 0:00:12]} Nc6 {[%emt 0:01:16]} 7. O-O {[%emt 0:01:26]} Bxc3 {[%emt 0:01:53]} 8. bxc3 {[%emt 0:00:08]} b6 {[%emt 0:00:52]} 9. e4 {[%emt 0:03:14]} d6 {[%emt 0:07:21]} 10. Bg5 {[%emt 0:02:10]} h6 {[%emt 0:09:33]} 11. Bh4 {[%emt 0:01:44]} g5 {[%emt 0:00:19]} 12. Bg3 {[%emt 0:00:08]} e5 {[%emt 0:00:07]} 13. f3 {[%emt 0:04:07]} Qe7 {[%emt 0:05:42]} 14. d5 {[%emt 0:02:30]} Na5 {[%emt 0:00:34]} 15. Bf2 {[%emt 0:01:33]} Nh5 {[%emt 0:05:07]} 16. g4 {[%emt 0:23:42]} Nf4 {[%emt 0:07:21]} 17. Nxf4 {[%emt 0:01:43]} exf4 {[%emt 0:00:22]} 18. Qe2 {[%emt 0:06:15]} Qe5 {[%emt 0:03:38]} 19. Kg2 {[%emt 0:01:17]} Bd7 {[%emt 0:03:49]} 20. h4 {[%emt 0:01:26]} Rae8 {[%emt 0:01:52]} 21. hxg5 {[%emt 0:09:28]} hxg5 {[%emt 0:00:36]} 22. Rh1 {[%emt 0:01:03]} f5 {[%emt 0:03:58]} 23. gxf5 {[%emt 0:00:35]} Bxf5 {[%emt 0:00:34]} 24. Qc2 {[%emt 0:07:18]} Bg6 {[%emt 0:03:12]} 25. Rh6 {[%emt 0:14:29]} Kg7 {[%emt 0:05:33]} 26. Rah1 {[%emt 0:00:08]} Rf6 {[%emt 0:00:47]} 27. Kf1 {[%emt 0:03:47]} Rg8 {[%emt 0:20:44]} 28. Be1 {[%emt 0:01:20]} Re8 {[%emt 0:10:33]} 29. Qh2 {[%emt 0:01:05]} Rg8 {[%emt 0:01:39]} 30. Rh8 {[%emt 0:05:04]} Rff8 {[%emt 0:00:23]} 31. Qh6+ {[%emt 0:02:56]} Kf7 {[%emt 0:00:17]} 32. Rxg8 {[%emt 0:00:42]} Rxg8 {[%emt 0:00:00]} 33. Rg1 {[%emt 0:01:25]} Kf6 {[%emt 0:00:16]} 34. Kf2 {[%emt 0:01:54]} Nb7 {[%emt 0:00:27]} 35. Qh3 {[%emt 0:01:39]} Ke7 {[%emt 0:01:41]} 36. Rh1 {[%emt 0:01:03]} Kd8 {[%emt 0:00:51]} 37. Bf1 {[%emt 0:00:46]} Be8 {[%emt 0:00:43]} 38. Qh6 {[%emt 0:01:19]} Qg7 {[%emt 0:00:17]} 39. Qxg7 {[%emt 0:00:52]} Rxg7 {[%emt 0:00:01]} 40. Bh3 {[%emt 0:00:15]} Rh7 {[%emt 0:01:22]} 41. Ke2 {[%emt 0:07:49]} Bd7 {[%emt 0:01:46]} 42. Bg2 {[%emt 0:00:10]} Rxh1 {[%emt 0:00:24]} 43. Bxh1 {[%emt 0:00:05]} Bh3 {[%emt 0:01:49]} 44. Kd3 {[%emt 0:01:21]} Na5 {[%emt 0:01:08]} 45. Bf2 {[%emt 0:02:20]} Bf1+ {[%emt 0:00:43]} 46. Kc2 {[%emt 0:00:08]} Nxc4 {[%emt 0:01:14]} 47. Kd1 {[%emt 0:01:35]} Ne5 {[%emt 0:00:51]} 48. Kd2 {[%emt 0:00:35]} Kc7 {[%emt 0:00:50]} 0-1

[Event "9th Amsterdam Science Park B 2019"]
[Site "Amsterdam"]
[Date "2019.07.12"]
[Round "7.3"]
[White "Bollaart, Jeroen"]
[Black "Roemersma, Aad"]
[Result "0-1"]
[ECO "B22"]
[WhiteElo "1950"]
[BlackElo "2029"]
[Annotator "NA"]
[PlyCount "100"]
[EventDate "2019.07.06"]
[EventType "swiss"]
[EventCountry "NED"]
[SourceTitle "playchess.com"]
[Source "ChessBase"]
[SourceQuality "1"]
[TimeControl "40/5400+30:1800+30"]

1. e4 {[%emt 0:00:00]} c5 {[%emt 0:00:00]} 2. c3 {[%emt 0:00:00]} d5 {[%emt 0:00:14]} 3. exd5 {[%emt 0:00:04]} Qxd5 {[%emt 0:00:05]} 4. Nf3 {[%emt 0:00:19]} Nc6 {[%emt 0:02:14]} 5. Na3 {[%emt 0:01:14]} Bg4 {[%emt 0:03:33]} 6. Be2 {[%emt 0:04:43]} Nf6 {[%emt 0:03:26]} 7. d4 {[%emt 0:06:43]} cxd4 {[%emt 0:06:37]} 8. Nb5 {[%emt 0:01:19]} Rc8 {[%emt 0:04:46]} 9. Nbxd4 {[%emt 0:04:21]} Nxd4 {[%emt 0:04:47]} 10. cxd4 {[%emt 0:07:02]} Qa5+ {[%emt 0:10:23]} 11. Bd2 {[%emt 0:03:24]} Qb6 {[%emt 0:00:09]} 12. O-O {[%emt 0:09:34]} g6 {[%emt 0:00:51]} 13. Rc1 {[%emt 0:07:38]} Rxc1 {[%emt 0:04:49]} 14. Qxc1 {[%emt 0:03:44]} Bg7 {[%emt 0:02:26]} 15. h3 {[%emt 0:01:36]} Bf5 {[%emt 0:05:59]} 16. Qc5 {[%emt 0:11:06]} Qxc5 {[%emt 0:02:34]} 17. dxc5 {[%emt 0:00:09]} Ne4 {[%emt 0:02:58]} 18. Be3 {[%emt 0:03:31]} O-O {[%emt 0:00:21]} 19. b4 {[%emt 0:02:54]} Nc3 {[%emt 0:02:34]} 20. Bc4 {[%emt 0:00:50]} Rc8 {[%emt 0:01:36]} 21. Nd4 {[%emt 0:03:19]} Bd7 {[%emt 0:01:44]} 22. Rc1 {[%emt 0:00:58]} Na4 {[%emt 0:05:01]} 23. Bb5 {[%emt 0:03:42]} Bxb5 {[%emt 0:08:51]} 24. Nxb5 {[%emt 0:00:10]} a6 {[%emt 0:00:01]} 25. Na7 {[%emt 0:02:09]} Rc7 {[%emt 0:02:42]} 26. c6 {[%emt 0:04:16]} Nc3 {[%emt 0:05:34]} 27. cxb7 {[%emt 0:09:46]} Rxb7 {[%emt 0:00:05]} 28. Kf1 {[%emt 0:00:27]} f5 {[%emt 0:01:50]} 29. Nc6 {[%emt 0:00:44]} Nxa2 {[%emt 0:01:11]} 30. Rd1 {[%emt 0:00:19]} Rc7 {[%emt 0:07:26]} 31. Rd2 {[%emt 0:02:00]} Rxc6 {[%emt 0:01:27]} 32. Rxa2 {[%emt 0:00:06]} e6 {[%emt 0:02:33]} 33. Bc5 {[%emt 0:00:38]} Bf8 {[%emt 0:00:34]} 34. Ke2 {[%emt 0:00:42]} Kf7 {[%emt 0:03:15]} 35. Ra5 {[%emt 0:01:29]} Bxc5 {[%emt 0:00:29]} 36. bxc5 {[%emt 0:00:23]} e5 {[%emt 0:00:30]} 37. Kd3 {[%emt 0:00:11]} Ke6 {[%emt 0:00:09]} 38. Kc4 {[%emt 0:00:11]} e4 {[%emt 0:01:29]} 39. Kd4 {[%emt 0:01:46]} Kd7 {[%emt 0:01:04]} 40. Ra3 {[%emt 0:03:35]} Re6 {[%emt 0:00:50]} 41. Kd5 {[%emt 0:31:12]} f4 {[%emt 0:32:17]} 42. Rc3 {[%emt 0:00:00]} Re8 {[%emt 0:00:00]} 43. Ra3 {[%emt 0:00:00]} e3 {[%emt 0:00:00]} 44. fxe3 {[%emt 0:00:00]} fxe3 {[%emt 0:00:00]} 45. Rxa6 {[%emt 0:00:00]} e2 {[%emt 0:00:00]} 46. Ra7+ {[%emt 0:00:00]} Kd8 {[%emt 0:00:00]} 47. Ra8+ {[%emt 0:00:00]} Ke7 {[%emt 0:00:00]} 48. Ra1 {[%emt 0:00:00]} Rd8+ {[%emt 0:00:00]} 49. Ke5 {[%emt 0:00:00]} Rd1 {[%emt 0:00:00]} 50. Ra7+ {[%emt 0:00:00]} Kd8 0-1

[Event "9th Amsterdam Science Park B 2019"]
[Site "Amsterdam"]
[Date "2019.07.12"]
[Round "7.4"]
[White "Sula, Avni"]
[Black "Eveleens, Wim"]
[Result "1/2-1/2"]
[ECO "A04"]
[WhiteElo "1978"]
[BlackElo "2005"]
[Annotator "NA"]
[PlyCount "33"]
[EventDate "2019.07.06"]
[EventType "swiss"]
[EventCountry "NED"]
[SourceTitle "playchess.com"]
[Source "ChessBase"]
[SourceQuality "1"]
[TimeControl "40/5400+30:1800+30"]

1. Nf3 {[%emt 0:00:00]} e6 {[%emt 0:00:15]} 2. d4 {[%emt 0:00:36]} f5 {[%emt 0:00:16]} 3. Bf4 {[%emt 0:01:21]} Nf6 {[%emt 0:00:08]} 4. e3 {[%emt 0:00:56]} d6 {[%emt 0:02:50]} 5. h3 {[%emt 0:01:50]} g6 {[%emt 0:00:21]} 6. c4 {[%emt 0:01:27]} Qe7 {[%emt 0:00:14]} 7. Nc3 {[%emt 0:00:56]} Bg7 {[%emt 0:00:05]} 8. Qa4+ {[%emt 0:05:57]} Nbd7 {[%emt 0:05:48]} 9. Nb5 {[%emt 0:08:46]} O-O {[%emt 0:00:24]} 10. Qa3 {[%emt 0:00:20]} Ne8 {[%emt 0:12:07]} 11. Be2 {[%emt 0:04:37]} b6 {[%emt 0:24:18]} 12. Nxc7 {[%emt 0:02:37]} Nxc7 {[%emt 0:00:03]} 13. Bxd6 {[%emt 0:00:11]} Qd8 {[%emt 0:00:04]} 14. Be7 {[%emt 0:05:48]} Qe8 {[%emt 0:00:05]} 15. Bd6 {[%emt 0:01:29]} Qd8 {[%emt 0:00:19]} 16. Be7 {[%emt 0:03:59]} Qe8 {[%emt 0:00:01]} 17. Bd6 {[%emt 0:07:59]} 1/2-1/2

[Event "9th Amsterdam Science Park B 2019"]
[Site "Amsterdam"]
[Date "2019.07.12"]
[Round "7.5"]
[White "Van `t Schip, Richard"]
[Black "Van Amerongen-Jansen, Peggy"]
[Result "1/2-1/2"]
[ECO "B10"]
[WhiteElo "2003"]
[BlackElo "2002"]
[Annotator "NA"]
[PlyCount "70"]
[EventDate "2019.07.06"]
[EventType "swiss"]
[EventCountry "NED"]
[SourceTitle "playchess.com"]
[Source "ChessBase"]
[SourceQuality "1"]
[TimeControl "40/5400+30:1800+30"]

1. e4 {[%emt 0:00:00]} c6 {[%emt 0:00:00]} 2. Nc3 {[%emt 0:00:03]} g6 {[%emt 0:02:21]} 3. d4 {[%emt 0:08:26]} d6 {[%emt 0:01:35]} 4. Be3 {[%emt 0:05:25]} Bg7 {[%emt 0:05:41]} 5. Be2 {[%emt 0:08:10]} Nd7 {[%emt 0:01:58]} 6. Qd2 {[%emt 0:03:14]} Ngf6 {[%emt 0:09:59]} 7. f3 {[%emt 0:03:55]} Qa5 {[%emt 0:16:02]} 8. g4 {[%emt 0:06:52]} b5 {[%emt 0:19:38]} 9. h4 {[%emt 0:14:56]} b4 {[%emt 0:04:03]} 10. Nd1 {[%emt 0:00:57]} c5 {[%emt 0:02:54]} 11. c3 {[%emt 0:13:58]} bxc3 {[%emt 0:03:24]} 12. bxc3 {[%emt 0:06:45]} h5 {[%emt 0:04:02]} 13. g5 {[%emt 0:02:21]} Nh7 {[%emt 0:02:53]} 14. Nh3 {[%emt 0:05:20]} cxd4 {[%emt 0:02:25]} 15. cxd4 {[%emt 0:00:39]} Qxd2+ {[%emt 0:00:20]} 16. Kxd2 {[%emt 0:00:09]} Nhf8 {[%emt 0:00:55]} 17. Bb5 {[%emt 0:05:29]} Ne6 {[%emt 0:02:50]} 18. Kd3 {[%emt 0:00:45]} Nc7 {[%emt 0:01:02]} 19. Nc3 {[%emt 0:02:21]} O-O {[%emt 0:02:53]} 20. Bxd7 {[%emt 0:05:10]} Bxd7 {[%emt 0:00:04]} 21. Nf4 {[%emt 0:00:15]} e6 {[%emt 0:01:43]} 22. Rab1 {[%emt 0:00:53]} Rab8 {[%emt 0:00:23]} 23. Rhc1 {[%emt 0:01:29]} Nb5 {[%emt 0:03:23]} 24. Nxb5 {[%emt 0:00:26]} Rxb5 {[%emt 0:00:20]} 25. Rxb5 {[%emt 0:00:17]} Bxb5+ {[%emt 0:00:01]} 26. Kd2 {[%emt 0:00:32]} a6 {[%emt 0:05:42]} 27. Nd3 {[%emt 0:01:41]} Rd8 {[%emt 0:00:52]} 28. Nb4 {[%emt 0:00:28]} d5 {[%emt 0:00:48]} 29. exd5 {[%emt 0:01:13]} exd5 {[%emt 0:00:04]} 30. Nc6 {[%emt 0:01:28]} Re8 {[%emt 0:00:32]} 31. Nb4 {[%emt 0:00:26]} Bc4 {[%emt 0:00:13]} 32. Rc2 {[%emt 0:00:29]} Bf8 {[%emt 0:00:16]} 33. Nd3 {[%emt 0:00:08]} Bd6 {[%emt 0:01:13]} 34. f4 {[%emt 0:00:54]} Bc7 {[%emt 0:00:49]} 35. Ne5 {[%emt 0:00:20]} Bxe5 1/2-1/2

[Event "9th Amsterdam Science Park B 2019"]
[Site "Amsterdam"]
[Date "2019.07.12"]
[Round "7.6"]
[White "Aalten, Evert"]
[Black "Markus, John Raymond"]
[Result "1/2-1/2"]
[ECO "A30"]
[WhiteElo "1931"]
[BlackElo "1997"]
[Annotator "NA"]
[PlyCount "43"]
[EventDate "2019.07.06"]
[EventType "swiss"]
[EventCountry "NED"]
[SourceTitle "playchess.com"]
[Source "ChessBase"]
[SourceQuality "1"]
[TimeControl "40/5400+30:1800+30"]

1. Nf3 {[%emt 0:00:00]} Nf6 {[%emt 0:00:00]} 2. c4 {[%emt 0:00:05]} e6 {[%emt 0:00:25]} 3. g3 {[%emt 0:01:03]} b6 {[%emt 0:00:52]} 4. Bg2 {[%emt 0:00:20]} Bb7 {[%emt 0:00:05]} 5. O-O {[%emt 0:01:01]} c5 {[%emt 0:00:16]} 6. Nc3 {[%emt 0:00:45]} Be7 {[%emt 0:00:41]} 7. d4 {[%emt 0:00:28]} cxd4 {[%emt 0:00:11]} 8. Qxd4 {[%emt 0:00:12]} a6 {[%emt 0:01:04]} 9. Rd1 {[%emt 0:01:18]} d6 {[%emt 0:02:47]} 10. b3 {[%emt 0:01:48]} O-O {[%emt 0:02:31]} 11. e4 {[%emt 0:02:49]} Qc7 {[%emt 0:08:38]} 12. h3 {[%emt 0:13:59]} Nbd7 {[%emt 0:11:47]} 13. Ba3 {[%emt 0:07:11]} Nc5 {[%emt 0:00:23]} 14. e5 {[%emt 0:03:52]} dxe5 {[%emt 0:04:33]} 15. Qxe5 {[%emt 0:01:23]} Qc8 {[%emt 0:09:31]} 16. Bxc5 {[%emt 0:15:16]} Bxc5 {[%emt 0:02:19]} 17. Na4 {[%emt 0:01:38]} Ne4 {[%emt 0:09:44]} 18. Nxc5 {[%emt 0:00:53]} Qxc5 {[%emt 0:08:09]} 19. Qxc5 {[%emt 0:00:34]} Nxc5 {[%emt 0:00:24]} 20. Ne5 {[%emt 0:05:06]} Bxg2 {[%emt 0:00:56]} 21. Kxg2 {[%emt 0:00:10]} Rfd8 {[%emt 0:05:13]} 22. Nc6 {[%emt 0:03:34]} 1/2-1/2

[Event "9th Amsterdam Science Park B 2019"]
[Site "Amsterdam"]
[Date "2019.07.12"]
[Round "7.7"]
[White "Honkoop, Mark"]
[Black "Cohn, Samuel"]
[Result "1-0"]
[ECO "B30"]
[WhiteElo "1670"]
[BlackElo "1679"]
[Annotator "NA"]
[PlyCount "99"]
[EventDate "2019.07.06"]
[EventType "swiss"]
[EventCountry "NED"]
[SourceTitle "playchess.com"]
[Source "ChessBase"]
[SourceQuality "1"]
[TimeControl "40/5400+30:1800+30"]

1. e4 {[%emt 0:00:00]} c5 {[%emt 0:00:00]} 2. Nf3 {[%emt 0:00:00]} Nc6 {[%emt 0:00:00]} 3. Bb5 {[%emt 0:00:00]} e6 {[%emt 0:01:59]} 4. Bxc6 {[%emt 0:01:29]} bxc6 {[%emt 0:00:26]} 5. b3 {[%emt 0:02:24]} d5 {[%emt 0:00:31]} 6. e5 {[%emt 0:04:49]} Ba6 {[%emt 0:03:23]} 7. d3 {[%emt 0:01:58]} Ne7 {[%emt 0:01:47]} 8. O-O {[%emt 0:20:28]} Nf5 {[%emt 0:04:35]} 9. c4 {[%emt 0:09:23]} Be7 {[%emt 0:02:09]} 10. Nc3 {[%emt 0:01:25]} O-O {[%emt 0:01:36]} 11. Ba3 {[%emt 0:03:28]} Nd4 {[%emt 0:10:46]} 12. Na4 {[%emt 0:10:13]} Nxf3+ {[%emt 0:02:01]} 13. Qxf3 {[%emt 0:00:38]} Qa5 {[%emt 0:00:48]} 14. Rac1 {[%emt 0:02:51]} Rfd8 {[%emt 0:14:13]} 15. Qe3 {[%emt 0:06:28]} dxc4 {[%emt 0:02:21]} 16. dxc4 {[%emt 0:00:12]} Rd4 {[%emt 0:00:57]} 17. Bb2 {[%emt 0:04:31]} Rad8 {[%emt 0:11:07]} 18. Bc3 {[%emt 0:08:34]} Qc7 {[%emt 0:00:24]} 19. Nb2 {[%emt 0:00:40]} Bb7 {[%emt 0:22:04]} 20. Rcd1 {[%emt 0:04:54]} Rxd1 {[%emt 0:00:56]} 21. Rxd1 {[%emt 0:00:06]} Rxd1+ {[%emt 0:00:53]} 22. Nxd1 {[%emt 0:00:05]} Qd7 {[%emt 0:06:23]} 23. Nb2 {[%emt 0:01:52]} Bc8 {[%emt 0:00:30]} 24. Qd2 {[%emt 0:01:19]} f6 {[%emt 0:03:20]} 25. Nd3 {[%emt 0:03:18]} Qe8 {[%emt 0:02:56]} 26. h3 {[%emt 0:02:14]} f5 {[%emt 0:04:00]} 27. Bb2 {[%emt 0:03:28]} Qd8 {[%emt 0:00:16]} 28. Ba3 {[%emt 0:02:19]} g5 {[%emt 0:01:18]} 29. Qe3 {[%emt 0:01:01]} f4 {[%emt 0:00:30]} 30. Qe4 {[%emt 0:00:42]} Qb6 {[%emt 0:01:18]} 31. h4 {[%emt 0:01:45]} Bd7 {[%emt 0:00:33]} 32. hxg5 {[%emt 0:00:32]} Qa5 {[%emt 0:00:41]} 33. Bc1 {[%emt 0:00:40]} Bxg5 {[%emt 0:00:38]} 34. Qe2 {[%emt 0:01:15]} f3 {[%emt 0:00:31]} 35. gxf3 {[%emt 0:00:47]} Bxc1 {[%emt 0:00:05]} 36. Nxc1 {[%emt 0:00:02]} Qc3 {[%emt 0:00:17]} 37. Nd3 {[%emt 0:00:29]} Be8 {[%emt 0:01:03]} 38. Kg2 {[%emt 0:01:19]} Qd4 {[%emt 0:00:27]} 39. Qe3 {[%emt 0:00:17]} Bg6 {[%emt 0:00:32]} 40. Nxc5 {[%emt 0:01:04]} Qh4 {[%emt 0:01:02]} 41. Nxe6 {[%emt 0:04:52]} Qe7 {[%emt 0:05:15]} 42. Nd4 {[%emt 0:04:02]} Qg7 {[%emt 0:15:32]} 43. Qg5 {[%emt 0:05:15]} h6 {[%emt 0:02:02]} 44. Qg4 {[%emt 0:05:35]} Kh7 {[%emt 0:04:05]} 45. Nxc6 {[%emt 0:04:17]} Qf7 {[%emt 0:01:10]} 46. Nd4 {[%emt 0:01:29]} Qe7 {[%emt 0:01:03]} 47. Qf4 {[%emt 0:01:11]} Qg7 {[%emt 0:02:24]} 48. Qf6 {[%emt 0:02:22]} Qxf6 {[%emt 0:00:06]} 49. exf6 {[%emt 0:00:04]} Bb1 {[%emt 0:01:02]} 50. c5 {[%emt 0:00:16]} 1-0

[Event "9th Amsterdam Science Park B 2019"]
[Site "Amsterdam"]
[Date "2019.07.12"]
[Round "7.8"]
[White "Tijssens, Rob"]
[Black "Smeets, Kobe"]
[Result "1-0"]
[ECO "E68"]
[WhiteElo "1725"]
[BlackElo "1530"]
[Annotator "NA"]
[PlyCount "61"]
[EventDate "2019.07.06"]
[EventType "swiss"]
[EventCountry "NED"]
[SourceTitle "playchess.com"]
[Source "ChessBase"]
[SourceQuality "1"]
[TimeControl "40/5400+30:1800+30"]

1. d4 {[%emt 0:00:00]} Nf6 {[%emt 0:00:00]} 2. c4 {[%emt 0:00:00]} g6 {[%emt 0:00:00]} 3. Nf3 {[%emt 0:00:48]} Bg7 {[%emt 0:00:00]} 4. g3 {[%emt 0:00:09]} O-O {[%emt 0:00:06]} 5. Bg2 {[%emt 0:00:11]} d6 {[%emt 0:00:06]} 6. Nc3 {[%emt 0:00:50]} Nbd7 {[%emt 0:00:16]} 7. O-O {[%emt 0:00:28]} e5 {[%emt 0:00:29]} 8. e4 {[%emt 0:00:23]} a6 {[%emt 0:01:02]} 9. h3 {[%emt 0:04:36]} Ne8 {[%emt 0:10:27]} 10. Be3 c6 11. Qc2 {[%emt 0:04:35]} Nc7 {[%emt 0:04:13]} 12. Rad1 Qe7 {[%emt 0:02:23]} 13. Rfe1 {[%emt 0:11:40]} Re8 {[%emt 0:03:11]} 14. a3 {[%emt 0:02:30]} Nf8 {[%emt 0:07:44]} 15. Qd2 {[%emt 0:04:47]} Be6 {[%emt 0:06:06]} 16. Qe2 {[%emt 0:08:12]} b5 {[%emt 0:03:38]} 17. cxb5 {[%emt 0:12:17]} cxb5 {[%emt 0:00:27]} 18. dxe5 {[%emt 0:01:05]} dxe5 {[%emt 0:01:13]} 19. Nd5 {[%emt 0:03:36]} Bxd5 {[%emt 0:09:24]} 20. exd5 {[%emt 0:00:07]} Qd6 {[%emt 0:01:51]} 21. b4 {[%emt 0:08:09]} Nd7 {[%emt 0:10:44]} 22. Ng5 {[%emt 0:06:00]} f5 {[%emt 0:10:51]} 23. Bc5 {[%emt 0:02:22]} Qf6 {[%emt 0:15:58]} 24. d6 {[%emt 0:01:01]} Qxg5 {[%emt 0:01:25]} 25. dxc7 {[%emt 0:02:50]} Nxc5 26. Bxa8 {[%emt 0:00:24]} Rxa8 {[%emt 0:08:33]} 27. bxc5 {[%emt 0:01:37]} Rc8 {[%emt 0:01:49]} 28. Qa2+ Kf8 29. Rd7 {[%emt 0:01:30]} Qf6 {[%emt 0:01:55]} 30. Red1 {[%emt 0:00:50]} Re8 {[%emt 0:00:33]} 31. R1d6 {[%emt 0:01:34]} 1-0